Cogmind - Beta 12 @@@ ROGUE MODE // 2023.10.17 @ 23:13:20 Player: Beans Result: Destroyed by S-27 Virus with Autogun Performance ------------- Evolutions (5) 2500 Regions Visited (15) 3000 Robots Destroyed (57) 285 Value Destroyed (1883) 1883 Prototype IDs (13) 260 Alien Tech Used (0) 0 Bonus (416) 416 TOTAL SCORE: 8344 Bonus ------- High Alert Combat Kills 17 Follower Combat Kills 99 Met Data Miner 300 Cogmind --------- Core Integrity 0/1000 Matter 290/300 Energy 99/100 System Corruption 8% Temperature Cool (0) Movement Core (50) Location -5/Upper Caves Parts ------- > --- POWER (2) -------- (None) > --- PROPULSION (4) --- (None) > --- UTILITY (8) ------ Advanced Visual Processing Unit Advanced Signal Interpreter 0b10 Decoder Chip [Skirmisher] Improved Hacking Suite > --- WEAPON (3) ------- (None) > --- INVENTORY (5) ---- Advanced Signal Interpreter Advanced Actuator Array Axe Power Sword Peak State ------------ > --- POWER ------------ Micro Fission Core Micro Fission Core > --- PROPULSION ------- Nuclear Pulse Array Nuclear Pulse Array > --- UTILITY ---------- Advanced Visual Processing Unit Improved Sensor Array Advanced Signal Interpreter 0b10 Decoder Chip [Skirmisher] Advanced Melee Analysis Suite Transmission Jammer Improved Hacking Suite Improved Hacking Suite > --- WEAPON ----------- Axe Axe Power Sword > --- INVENTORY -------- Micro Fission Core Advanced Signal Interpreter Microactuators [Rating: 83] Favorites ----------- Power Light Angular Momentum Engine Engine Light Angular Momentum Engine Power Core Micro Nuclear Core Reactor Antimatter Reactor Propulsion Carbon-fiber Leg Leg Carbon-fiber Leg Flight Unit Nuclear Pulse Array Utility Core Analyzer Device Microactuators Storage Small Storage Unit Processor Core Analyzer Hackware Improved Hacking Suite Protection Improved Medium Armor Plating Weapon Katana Ballistic Gun Assault Rifle Impact Weapon Maul Slashing Weapon Katana Piercing Weapon Heavy Pick Build | -11 -10 -10 -9 -8 -7 -7 -7 -6 -6 -6 -6 -5 -5 -5 -5 ------- Run | Jun Mat Min Mat Mat Fac Low Low Fac Low Low Dat Pro Fac Upp Upp Slots Evolved 10 | . . . 2 2 2 . . 2 . . . . 2 . . Power 1 | . . . . . . . . 1 . . . . . . . Propulsion 2 | . . . . 1 . . . . . . . . 1 . . Utility 6 | . . . 2 1 1 . . 1 . . . . 1 . . Weapon 1 | . . . . . 1 . . . . . . . . . . Parts Attached 100 | 7 . 1 8 9 9 5 . 7 8 11 . 5 21 5 4 Power 16 | 1 . . 2 . 1 . . 2 1 2 . 2 2 3 . Engine 8 | 1 . . 2 . . . . 1 1 1 . 1 . 1 . Core 7 | . . . . . 1 . . 1 . 1 . . 2 2 . Reactor 1 | . . . . . . . . . . . . 1 . . . Propulsion 26 | 2 . . 2 3 3 1 . . 4 3 . 3 5 . . Treads . | . . . . . . . . . . . . . . . . Leg 21 | 2 . . 2 3 3 1 . . 4 3 . 3 . . . Wheel . | . . . . . . . . . . . . . . . . Hover . | . . . . . . . . . . . . . . . . Flight 5 | . . . . . . . . . . . . . 5 . . Utility 39 | 2 . 1 3 5 4 3 . 3 3 4 . . 7 2 2 Device 16 | 1 . . 1 4 1 . . 1 3 1 . . 3 . 1 Storage 2 | 1 . . 1 . . . . . . . . . . . . Processor 12 | . . 1 . . 2 2 . 2 . 3 . . 1 1 . Hackware 2 | . . . . . . . . . . . . . 2 . . Protection 7 | . . . 1 1 1 1 . . . . . . 1 1 1 Artifact . | . . . . . . . . . . . . . . . . Weapon 19 | 2 . . 1 1 1 1 . 2 . 2 . . 7 . 2 Energy Gun . | . . . . . . . . . . . . . . . . Energy Cannon . | . . . . . . . . . . . . . . . . Ballistic Gun 3 | 2 . . . . . . . . . . . . 1 . . Ballistic Cannon . | . . . . . . . . . . . . . . . . Launcher . | . . . . . . . . . . . . . . . . Special Weapon . | . . . . . . . . . . . . . . . . Impact Weapon 4 | . . . . 1 1 . . 1 . 1 . . . . . Slashing Weapon 11 | . . . 1 . . 1 . . . 1 . . 6 . 2 Piercing Weapon 1 | . . . . . . . . 1 . . . . . . . Special Melee Weapon . | . . . . . . . . . . . . . . . . Unidentified Prototypes 2 | . . . 1 . . . . . . . . 1 . . . Corrupted Parts 2 | . . . . . . . . . 1 1 . . . . . System Corruption 11 | . . . . . . . . . 10 1 . . . . . Parts Lost 45 | . . . 1 4 . 2 . 1 2 9 . 8 7 4 7 Power 6 | . . . . . . . . . . 1 . 2 1 1 1 Propulsion 14 | . . . . 2 . 1 . . . 5 . 1 3 1 1 Utility 19 | . . . . 2 . 1 . 1 2 2 . 3 1 2 5 Weapon 6 | . . . 1 . . . . . . 1 . 2 2 . . Highest Loss Streak 8 | . . . 1 4 . 2 . 1 2 8 . 8 7 3 7 To Critical Strikes . | . . . . . . . . . . . . . . . . Average Slot Usage (%) 85 | . 100 100 92 87 100 99 100 99 93 60 80 80 77 71 35 Engine 4 | . 14 14 11 9 2 . . 2 12 1 . 2 . . . Core 4 | . . . . . 4 7 7 10 . 5 6 4 7 7 1 Leg 15 | . 28 28 21 22 23 22 23 20 20 6 6 10 . . . Flight 1 | . . . . . . . . . . . . . 9 7 . Device 14 | . 14 14 14 22 17 15 15 19 18 7 6 5 9 7 2 Storage 1 | . 14 . 9 6 . . . . . . . . . . . Processor 20 | . . 14 11 9 20 23 23 20 20 23 40 36 24 21 20 Hackware 1 | . . . . . . . . . . . . . 7 11 7 Protection 2 | . . . 5 4 7 6 7 6 1 . . . . . . Ballistic Gun 1 | . 28 28 9 . . . . . . . . . . . . Impact Weapon 5 | . . . . 3 15 7 7 5 6 6 6 5 . . . Slashing Weapon 7 | . . . 9 9 7 14 15 10 6 1 6 5 11 10 1 Piercing Weapon 2 | . . . . . . . . 2 6 6 6 6 . . . Naked Turns . | . . . . . . . . . . . . . . . . Heaviest Build 37 | 15 15 10 19 20 25 25 25 35 37 35 20 29 28 21 17 Greatest Support 55 | 20 20 20 23 35 39 39 39 39 54 54 20 55 48 26 13 Greatest Overweight (x) 9 | 3 . . . . . . . . . 9 . . . . 5 Average Overweight (x) . | . . . . . . . . . . . . . . . . Largest Inventory Capacity 8 | 8 8 5 8 8 5 5 5 5 5 5 5 5 5 5 5 Average Capacity 5 | 7 8 5 7 7 5 5 5 5 5 5 5 5 5 5 5 Most Carried 6 | . 3 3 6 5 5 5 5 5 5 5 4 5 5 5 4 Average Carried 4 | . 1 3 4 4 4 4 5 4 4 3 4 4 2 3 3 Final Capacity 8 | 8 8 5 8 5 5 5 5 5 5 5 5 5 5 5 5 Final Carried 6 | . 3 3 6 5 5 5 5 5 5 4 4 4 3 4 4 Class Distribution -------------------- 42% | Mutant 37% | Scavenger-Mutant 8% | Hacker-Ninja 6% | Derelict-Mutant 3% | Hacker-Mutant Dominant Class ---------------- Mutant | -10/Materials Mutant | -10/Mines Scavenger-Mutant | -9/Materials Scavenger-Mutant | -8/Materials Mutant | -7/Factory Scavenger-Mutant | -7/Lower Caves Scavenger-Mutant | -7/Lower Caves Scavenger-Mutant | -6/Factory Scavenger-Mutant | -6/Lower Caves Mutant | -6/Lower Caves Derelict-Mutant | -6/Data Miner Derelict-Mutant | -5/Proximity Caves Hacker-Ninja | -5/Factory Hacker-Ninja | -5/Upper Caves Mutant | -5/Upper Caves Resources | -11 -10 -10 -9 -8 -7 -7 -7 -6 -6 -6 -6 -5 -5 -5 -5 ----------- Run | Jun Mat Min Mat Mat Fac Low Low Fac Low Low Dat Pro Fac Upp Upp Matter Collected 1388 | 276 19 46 148 30 123 77 . . 156 99 . 55 107 223 29 Remotely . | . . . . . . . . . . . . . . . . Salvage Created 2326 | 17 112 49 397 213 186 510 . . 202 379 . 55 177 . 29 Parts 125 | 1 7 5 29 12 14 21 . . 7 12 . 4 12 . 1 Haulers Intercepted 1 | . . . . . 1 . . . . . . . . . . Recyclers Shooed 1 | . . . . . 1 . . . . . . . . . . Parts Field Recycled . | . . . . . . . . . . . . . . . . Retrieved Matter . | . . . . . . . . . . . . . . . . Parts Self-Destructed 43 | . . . . . . 17 . . 6 12 . 5 . 2 1 Prevented 13 | . . . . . . . . . 11 . . 1 . 1 . Kills | -11 -10 -10 -9 -8 -7 -7 -7 -6 -6 -6 -6 -5 -5 -5 -5 ------- Run | Jun Mat Min Mat Mat Fac Low Low Fac Low Low Dat Pro Fac Upp Upp Combat Hostiles Destroyed 48 | . 2 3 10 6 2 6 . . 5 7 . 2 4 . 1 Melee 38 | . . . 7 6 2 6 . . 5 7 . 2 2 . 1 Guns 8 | . 2 3 3 . . . . . . . . . . . . AOE 2 | . . . . . . . . . . . . . 2 . . Classes Destroyed 11 | 1 2 1 3 . 2 . . . . . . 1 1 . . Builder 1 | . . . 1 . . . . . . . . . . . . Tunneler 1 | 1 . . . . . . . . . . . . . . . Hauler 1 | . . . . . 1 . . . . . . . . . . Operator 1 | . . . . . . . . . . . . . 1 . . Drone 1 | . . . . . . . . . . . . 1 . . . Watcher 5 | . 1 . . . 2 . . . . . . . 2 . . Swarmer 23 | . . 3 4 3 . . . . 2 7 . . 3 . 1 Grunt 12 | . 2 . 2 1 1 4 . . 1 . . 1 . . . Duelist 4 | . . . 1 . . 2 . . 1 . . . . . . Sentry 6 | . . . 3 2 . . . . 1 . . . . . . Programmer 2 | . . . . . 1 . . . . . . . 1 . . Best Kill Streak 6 | 1 2 3 5 5 2 6 . . 3 4 . 1 3 . 1 Combat Bots Only 6 | . 2 3 4 5 1 6 . . 3 4 . 1 3 . 1 Max Kills in Single Turn 2 | 1 1 1 1 1 1 1 . . 1 1 . 1 2 . 1 Gunslinging . | . . . . . . . . . . . . . . . . Exploded 2 | . . . . . . . . . . . . . 2 . . Melee 1 | . . . 1 1 1 1 . . 1 1 . 1 1 . 1 Uniques/NPCs Destroyed . | . . . . . . . . . . . . . . . . Combat | -11 -10 -10 -9 -8 -7 -7 -7 -6 -6 -6 -6 -5 -5 -5 -5 -------- Run | Jun Mat Min Mat Mat Fac Low Low Fac Low Low Dat Pro Fac Upp Upp Damage Taken 6059 | . 104 58 653 291 93 517 . 60 271 771 . 869 1090 392 890 Core 1847 | . 46 13 119 66 15 91 . . 45 204 . 231 276 146 595 Absorbed by Shields . | . . . . . . . . . . . . . . . . Redirected to Shielding 70 | . . . 37 33 . . . . . . . . . . . Core Remaining (%) 76 | 100 . 76 70 88 . . 84 . . . . 43 . . . Volleys Fired 36 | 1 8 8 7 . . . . . . . . . 12 . . Largest 2 | 2 2 2 2 . . . . . . . . . 1 . . Hottest 40 | 40 40 40 40 . . . . . . . . . 23 . . Shots Fired 60 | 2 16 16 14 . . . . . . . . . 12 . . Gun 60 | 2 16 16 14 . . . . . . . . . 12 . . Cannon . | . . . . . . . . . . . . . . . . Launcher . | . . . . . . . . . . . . . . . . Special . | . . . . . . . . . . . . . . . . Kinetic 60 | 2 16 16 14 . . . . . . . . . 12 . . Thermal . | . . . . . . . . . . . . . . . . Explosive . | . . . . . . . . . . . . . . . . Electromagnetic . | . . . . . . . . . . . . . . . . Robot Hit Streak 11 | 2 11 2 6 . . . . . . . . . 2 . . Robot Miss Streak 5 | . 2 3 1 . . . . . . . . . 5 . . Penetration Max . | . . . . . . . . . . . . . . . . Secondary Targets . | . . . . . . . . . . . . . . . . Shots Hit Robots 147 | 2 12 6 27 12 8 19 . . 9 18 . 12 20 1 1 Core Hits 70 | 1 6 4 14 5 4 11 . . 5 10 . 4 5 . 1 Critical Kills 1 | . . . . . . 1 . . . . . . . . . Critical Parts Destroyed 2 | . . . . . . . . . 1 . . 1 . . . Critical Strikes 10 | . . . . 1 . 3 . . 1 1 . 2 1 1 . Smash 4 | . . . . . . 2 . . 1 . . 1 . . . Sever 4 | . . . . 1 . 1 . . . . . 1 . 1 . Impale 2 | . . . . . . . . . . 1 . . 1 . . Melee Attacks 178 | . . . 21 15 14 24 . 1 16 28 . 18 32 6 3 Impact 19 | . . . . . 4 5 . . 3 4 . 3 . . . Slashing 128 | . . . 21 15 10 19 . . 3 8 . 12 31 6 3 Piercing 31 | . . . . . . . . 1 10 16 . 3 1 . . Sneak Attacks 4 | . . . 2 . 1 . . . . . . 1 . . . Combat Hostiles 1 | . . . . . . . . . . . . 1 . . . Follow-up Attacks 26 | . . . . . 1 5 . . 4 6 . 5 5 . . Damage Inflicted 5344 | 22 156 83 707 378 311 751 . . 327 853 . 496 1186 37 37 Guns 444 | 22 156 69 143 . . . . . . . . . 54 . . Cannons . | . . . . . . . . . . . . . . . . Explosions 392 | . . . . . . . . . . . . . 392 . . Melee 4494 | . . . 564 378 311 751 . . 327 853 . 496 740 37 37 Ramming 14 | . . 14 . . . . . . . . . . . . . Kinetic 444 | 22 156 69 143 . . . . . . . . . 54 . . Thermal 392 | . . . . . . . . . . . . . 392 . . Explosive . | . . . . . . . . . . . . . . . . Electromagnetic . | . . . . . . . . . . . . . . . . Impact 584 | . . . . . 44 201 . . 142 70 . 127 . . . Slashing 3176 | . . . 564 378 267 550 . . 26 314 . 303 700 37 37 Piercing 734 | . . . . . . . . . 159 469 . 66 40 . . Highest Corruption 12 | . . . 7 . 2 2 2 1 11 12 12 12 8 8 8 Average Corruption 6 | . . . 6 . 2 2 2 1 2 11 12 12 6 8 8 Corruption Purged . | . . . . . . . . . . . . . . . . Corruption Blocked . | . . . . . . . . . . . . . . . . Effects 118 | . . . 1 . 6 7 . . 16 40 4 10 14 18 2 Message Errors 34 | . . . . . 3 1 . . 3 15 1 3 3 5 . Matter Fused 27 | . . . 1 . . 2 . . 2 10 . 1 3 7 1 Heat Flow Errors 8 | . . . . . . . . . 1 3 . 1 3 . . Energy Discharges 19 | . . . . . 1 3 . . 2 3 2 3 3 2 . Parts Rejected 4 | . . . . . . . . . . 2 . 1 . . 1 Parts Fused 3 | . . . . . 1 . . . 1 1 . . . . . Data Loss (minor) 10 | . . . . . 1 . . . 3 4 1 . 1 . . Data Loss (major) 8 | . . . . . . 1 . . 3 1 . . . 3 . Alerts 4 | . . . . . . . . . 1 1 . . 1 1 . Misdirections 1 | . . . . . . . . . . . . 1 . . . Overload Shots . | . . . . . . . . . . . . . . . . Overflow Damage 682 | . . . 29 19 9 13 . . 73 191 . 104 244 . . Projectiles . | . . . . . . . . . . . . . . . . Explosions 170 | . . . . . . . . . . . . . 170 . . Melee 512 | . . . 29 19 9 13 . . 73 191 . 104 74 . . Knockbacks 6 | . . 1 . . . 1 . . 1 1 . 2 . . . Impact 6 | . . 1 . . . 1 . . 1 1 . 2 . . . Kinetic . | . . . . . . . . . . . . . . . . Secondary . | . . . . . . . . . . . . . . . . Self-Inflicted Damage 141 | . . . . . . . . . . . . . 141 . . Shots 2 | . . . . . . . . . . . . . 2 . . Rammed . | . . . . . . . . . . . . . . . . Targets Rammed 4 | . . 4 . . . . . . . . . . . . . Kicked 4 | . . 4 . . . . . . . . . . . . . Crushed . | . . . . . . . . . . . . . . . . Highest Temperature 275 | . 8 . 2 . . 5 . . 275 223 . 142 222 . . Average Temperature 94 | . 3 . 2 . . 5 . . 141 93 . 66 100 . . Received Heat Transfer 889 | . 57 . 111 90 27 207 . . 24 . . 283 45 45 . Siege Activations . | . . . . . . . . . . . . . . . . Robots Corrupted . | . . . . . . . . . . . . . . . . Combat Hostiles . | . . . . . . . . . . . . . . . . Parts Fried 2 | . . . . . 2 . . . . . . . . . . Impact Corruptions 5 | . . . . . 1 . . . 1 1 . 2 . . . Robots Melted . | . . . . . . . . . . . . . . . . Combat Hostiles . | . . . . . . . . . . . . . . . . Parts Melted . | . . . . . . . . . . . . . . . . Heat Transferred 200 | . . . . . . . . . . . . . 200 . . Parts Sabotaged . | . . . . . . . . . . . . . . . . Parts Stolen . | . . . . . . . . . . . . . . . . Parts Stripped . | . . . . . . . . . . . . . . . . Power Chain Reactions . | . . . . . . . . . . . . . . . . Missiles Intercepted . | . . . . . . . . . . . . . . . . Alert | -11 -10 -10 -9 -8 -7 -7 -7 -6 -6 -6 -6 -5 -5 -5 -5 ------- Run | Jun Mat Min Mat Mat Fac Low Low Fac Low Low Dat Pro Fac Upp Upp Peak Influence 440 | 5 111 113 346 186 84 . . 1 . . . . 440 . . Initial 159 | . 3 43 43 66 36 . . . . . . . 159 . . Average 119 | 2 61 65 216 75 47 . . . . . . . 370 . . Maximum Alert Level 2 | . . . 1 . . . . . . . . . 2 . . Low Security (%) 76 | 100 100 100 41 100 100 . . 100 . . . . 7 . . Level 1 13 | . . . 58 . . . . . . . . . 31 . . Level 2 10 | . . . . . . . . . . . . . 61 . . Level 3 . | . . . . . . . . . . . . . . . . Level 4 . | . . . . . . . . . . . . . . . . Level 5 . | . . . . . . . . . . . . . . . . High Security . | . . . . . . . . . . . . . . . . Max Security . | . . . . . . . . . . . . . . . . Squads Dispatched 10 | . 1 . . 2 1 . . 2 . . . . 4 . . Investigation 2 | . 1 . . . . . . 1 . . . . . . . Extermination 3 | . . . . . 1 . . 1 . . . . 1 . . Reinforcement 2 | . . . . 2 . . . . . . . . . . . Assault 3 | . . . . . . . . . . . . . 3 . . Garrison . | . . . . . . . . . . . . . . . . Intercept . | . . . . . . . . . . . . . . . . Searches Triggered . | . . . . . . . . . . . . . . . . Data Miner Redirects 3 | . . . . . . . . . . . . . 3 . . Construction Impeded . | . . . . . . . . . . . . . . . . Haulers Reinforced . | . . . . . . . . . . . . . . . . Active Scanning Responses . | . . . . . . . . . . . . . . . . Cargo Convoy Interrupts . | . . . . . . . . . . . . . . . . Stealth | -11 -10 -10 -9 -8 -7 -7 -7 -6 -6 -6 -6 -5 -5 -5 -5 --------- Run | Jun Mat Min Mat Mat Fac Low Low Fac Low Low Dat Pro Fac Upp Upp Distress Signals 2 | . . . 1 1 . . . . . . . . . . . Communications Jammed 14 | . . . . . . . . . . . . . 14 . . Distress Signals 14 | . . . . . . . . . . . . . 14 . . Times Spotted 106 | . 9 3 11 10 9 7 1 1 6 8 . 6 17 13 5 Peak Tracking Total 7 | . 5 3 4 5 3 3 1 1 3 4 . 3 5 7 4 Tactical Retreats 7 | . . . . . . . . . 1 1 . 1 1 2 1 Traps | -11 -10 -10 -9 -8 -7 -7 -7 -6 -6 -6 -6 -5 -5 -5 -5 ------- Run | Jun Mat Min Mat Mat Fac Low Low Fac Low Low Dat Pro Fac Upp Upp Traps Triggered 7 | . 1 . 4 . 1 . . . . . . . 1 . . Indirectly . | . . . . . . . . . . . . . . . . Trap Hack Attempts . | . . . . . . . . . . . . . . . . Triggered . | . . . . . . . . . . . . . . . . Disarmed . | . . . . . . . . . . . . . . . . Reprogrammed . | . . . . . . . . . . . . . . . . Reused . | . . . . . . . . . . . . . . . . Traps Extracted . | . . . . . . . . . . . . . . . . Installed . | . . . . . . . . . . . . . . . . Triggered 3 | . . . . . . . . . 3 . . . . . . Machines | -11 -10 -10 -9 -8 -7 -7 -7 -6 -6 -6 -6 -5 -5 -5 -5 ---------- Run | Jun Mat Min Mat Mat Fac Low Low Fac Low Low Dat Pro Fac Upp Upp Machines Disabled 6 | . . . . . . . . . . . . . 5 1 . Max in Single Turn 4 | . . . . . . . . . . . . . 4 1 . Garrison Access 1 | . . . . . . . . . . . . . 1 . . Machines Repaired . | . . . . . . . . . . . . . . . . Machines Sabotaged . | . . . . . . . . . . . . . . . . Overloaded Fab Kills . | . . . . . . . . . . . . . . . . Hacking | -11 -10 -10 -9 -8 -7 -7 -7 -6 -6 -6 -6 -5 -5 -5 -5 --------- Run | Jun Mat Min Mat Mat Fac Low Low Fac Low Low Dat Pro Fac Upp Upp Machines Accessed 32 | . 3 . 3 3 7 . . 5 2 . 4 . 2 2 1 Terminals 17 | . 3 . 2 2 5 . . 2 . . . . 2 . 1 Fabricators 3 | . . . . . 1 . . 2 . . . . . . . Repair Stations . | . . . . . . . . . . . . . . . . Recycling Units 3 | . . . 1 . 1 . . 1 . . . . . . . Scanalyzers . | . . . . . . . . . . . . . . . . Garrison Access 1 | . . . . 1 . . . . . . . . . . . Total Hacks 93 | . 10 . 7 8 10 . . 8 6 . 28 . 4 10 2 Successful 58 | . 2 . 3 2 3 . . 1 6 . 28 . 1 10 2 Failed 35 | . 8 . 4 6 7 . . 7 . . . . 3 . . Catastrophic 8 | . 1 . 1 2 2 . . 1 . . . . 1 . . Database Lockouts . | . . . . . . . . . . . . . . . . Manual 31 | . 9 . 4 8 3 . . 1 . . . . 4 1 1 Terminals 37 | . 10 . 4 7 8 . . 2 . . . . 4 . 2 Fabricators 6 | . . . . . 1 . . 5 . . . . . . . Repair Stations . | . . . . . . . . . . . . . . . . Recycling Units 5 | . . . 3 . 1 . . 1 . . . . . . . Scanalyzers . | . . . . . . . . . . . . . . . . Garrison Access 1 | . . . . 1 . . . . . . . . . . . Terminal Hacks 53 | . 1 . 2 1 2 . . . 6 . 28 . 1 10 2 Record 27 | . . . . . . . . . 5 . 11 . . 9 2 Part Schematic 9 | . . . . . . . . . . . 9 . . . . Robot Schematic 5 | . . . . . . . . . . . 5 . . . . Prototype ID Bank 3 | . . . . . . . . . . . 3 . . . . Open Door 2 | . . . . . . . . . 1 . . . . 1 . Open DSF 1 | . . . . . 1 . . . . . . . . . . Level Access Points 1 | . . . . . 1 . . . . . . . . . . Terminal Index 3 | . 1 . 1 . . . . . . . . . 1 . . Unreport Threat 1 | . . . . 1 . . . . . . . . . . . Registered Components 1 | . . . 1 . . . . . . . . . . . . Fabricator Hacks 2 | . . . . . 1 . . 1 . . . . . . . Network Status 2 | . . . . . 1 . . 1 . . . . . . . Repair Station Hacks . | . . . . . . . . . . . . . . . . Recycling Unit Hacks . | . . . . . . . . . . . . . . . . Scanalyzer . | . . . . . . . . . . . . . . . . Garrison Access Hacks . | . . . . . . . . . . . . . . . . Unauthorized Hacks 3 | . 1 . 1 1 . . . . . . . . . . . Terminals 1 | . 1 . . . . . . . . . . . . . . Botnet 1 | . 1 . . . . . . . . . . . . . . Fabricators . | . . . . . . . . . . . . . . . . Repair Stations . | . . . . . . . . . . . . . . . . Recycling Units 1 | . . . 1 . . . . . . . . . . . . Monitor 1 | . . . 1 . . . . . . . . . . . . Scanalyzers . | . . . . . . . . . . . . . . . . Garrison Access 1 | . . . . 1 . . . . . . . . . . . Watchers 1 | . . . . 1 . . . . . . . . . . . Data Cores Recovered 1 | . . . . . . . . . . . . . 1 . . Used . | . . . . . . . . . . . . . . . . Hacking Detections 22 | . 3 . 3 3 6 . . 5 . . . . 2 . . Full Trace Events 1 | . . . . . . . . 1 . . . . . . . Feedback Events . | . . . . . . . . . . . . . . . . Feedback Blocked . | . . . . . . . . . . . . . . . . Robot Schematics Acquired 5 | . . . . . . . . . . . 5 . . . . Robots Built . | . . . . . . . . . . . . . . . . Authchips . | . . . . . . . . . . . . . . . . Time . | . . . . . . . . . . . . . . . . Total Robot Build Rating . | . . . . . . . . . . . . . . . . Part Schematics Acquired 9 | . . . . . . . . . . . 9 . . . . Parts Built . | . . . . . . . . . . . . . . . . Authchips . | . . . . . . . . . . . . . . . . Time . | . . . . . . . . . . . . . . . . Total Part Build Rating . | . . . . . . . . . . . . . . . . Parts Repaired . | . . . . . . . . . . . . . . . . Time . | . . . . . . . . . . . . . . . . Parts Recycled . | . . . . . . . . . . . . . . . . Recycled Matter . | . . . . . . . . . . . . . . . . Retrieved Matter . | . . . . . . . . . . . . . . . . Retrieved Components . | . . . . . . . . . . . . . . . . Parts Scanalyzed . | . . . . . . . . . . . . . . . . Part Schematics Acquired . | . . . . . . . . . . . . . . . . Parts Damaged . | . . . . . . . . . . . . . . . . Bothacking | -11 -10 -10 -9 -8 -7 -7 -7 -6 -6 -6 -6 -5 -5 -5 -5 ------------ Run | Jun Mat Min Mat Mat Fac Low Low Fac Low Low Dat Pro Fac Upp Upp Used RIF Installer . | . . . . . . . . . . . . . . . . Robots Hacked . | . . . . . . . . . . . . . . . . Non-combat . | . . . . . . . . . . . . . . . . Combat . | . . . . . . . . . . . . . . . . Robot Hacks Applied . | . . . . . . . . . . . . . . . . Relay Couplers Released 2 | . . . . . . . . . . . . . 2 . . Machine Destruction 2 | . . . . . . . . . . . . . 2 . . Fabnet Peak Effective % . | . . . . . . . . . . . . . . . . Robots Rewired . | . . . . . . . . . . . . . . . . Allies Hacked . | . . . . . . . . . . . . . . . . Hacks Repelled . | . . . . . . . . . . . . . . . . Allies | -11 -10 -10 -9 -8 -7 -7 -7 -6 -6 -6 -6 -5 -5 -5 -5 -------- Run | Jun Mat Min Mat Mat Fac Low Low Fac Low Low Dat Pro Fac Upp Upp Total Allies 5 | . . . . . . . . . . . . 1 . 3 1 Largest Group 3 | . . . . . . . . . . . . 1 . 3 1 Highest-Rated Group 135 | . . . . . . . . . . . . 96 . 75 135 Highest-Rated Ally 135 | . . . . . . . . . . . . 96 . 25 135 Total Orders . | . . . . . . . . . . . . . . . . Ally Attacks 23 | . . . . . . . . . . . . 12 . 11 . Total Damage 526 | . . . . . . . . . . . . 231 . 295 . Kills 3 | . . . . . . . . . . . . 2 . 1 . Allies Corrupted . | . . . . . . . . . . . . . . . . Allies Melted 1 | . . . . . . . . . . . . 1 . . . Intel | -11 -10 -10 -9 -8 -7 -7 -7 -6 -6 -6 -6 -5 -5 -5 -5 ------- Run | Jun Mat Min Mat Mat Fac Low Low Fac Low Low Dat Pro Fac Upp Upp Robot Analysis Total . | . . . . . . . . . . . . . . . . Derelict Logs Recovered 7 | . . . . . . 1 . . 1 2 . 1 . 2 . Drone Launches . | . . . . . . . . . . . . . . . . Drone Recoveries . | . . . . . . . . . . . . . . . . Decoded 0b10 Intel 10 | . . . . . . . . . . . . . 10 . . Garrisons 1 | . . . . . . . . . . . . . 1 . . Patrols 8 | . . . . . . . . . . . . . 8 . . Guards 1 | . . . . . . . . . . . . . 1 . . Exploration | -11 -10 -10 -9 -8 -7 -7 -7 -6 -6 -6 -6 -5 -5 -5 -5 ------------- Run | Jun Mat Min Mat Mat Fac Low Low Fac Low Low Dat Pro Fac Upp Upp Turns Passed 7085 | 89 216 65 410 289 874 510 91 536 1464 1075 95 251 505 501 114 Spaces Moved 6350 | 63 91 25 259 193 644 428 55 391 1238 777 80 181 655 1078 192 Core 184 | 6 . . . . . . . . . 16 . . 10 . 152 Treads . | . . . . . . . . . . . . . . . . Legs 4431 | 57 91 25 259 193 644 428 55 391 1238 761 80 181 28 . . Wheels . | . . . . . . . . . . . . . . . . Hover . | . . . . . . . . . . . . . . . . Flight 1735 | . . . . . . . . . . . . . 617 1078 40 Fastest Speed 37 | 50 120 120 120 120 100 90 100 100 100 110 120 120 37 37 40 Average Speed 91 | 117 120 120 120 120 117 99 100 100 110 125 120 120 41 38 51 Slowest Speed 500 | 200 120 120 120 120 120 100 100 100 120 500 120 120 120 40 300 Overloaded Moves . | . . . . . . . . . . . . . . . . Propulsion Burnouts . | . . . . . . . . . . . . . . . . Robots Hopped 6 | . . . . . . . . . . . . . 4 2 . Cave-ins Triggered . | . . . . . . . . . . . . . . . . Exploration Rate (%) 39 | 4 35 10 26 23 18 60 9 13 97 86 68 37 19 83 40 Regions Visited 15 Branch Regions 9 Pre-discovered Areas 2 | . . . . . . . . . . . 1 . . 1 . Known Exits Taken 9 | . . . . . . 1 1 1 1 1 1 1 1 1 . Unknown Exits Taken 6 | 1 1 1 1 1 1 . . . . . . . . . . Scrap Searched 15 | . . 1 . . . 1 . . 3 5 . 1 . 3 1 Spaces Dug 14 | . . . . . . . . 1 3 . . . 7 3 . Terrain Destroyed 27 | . . . . . . . . 1 3 . . . 20 3 . Melee 14 | . . . . . . . . 1 3 . . . 7 3 . Projectile . | . . . . . . . . . . . . . . . . AOE 13 | . . . . . . . . . . . . . 13 . . Terrain Rammed . | . . . . . . . . . . . . . . . . Walls Destroyed . | . . . . . . . . . . . . . . . . Machines Disabled . | . . . . . . . . . . . . . . . . Actions | -11 -10 -10 -9 -8 -7 -7 -7 -6 -6 -6 -6 -5 -5 -5 -5 --------- Run | Jun Mat Min Mat Mat Fac Low Low Fac Low Low Dat Pro Fac Upp Upp Total 7327 | 72 182 42 311 229 755 486 91 535 1314 841 79 199 835 1154 202 Wait 630 | 2 81 5 12 4 75 36 37 129 52 28 . 1 108 59 1 Move 6323 | 62 90 24 258 192 643 427 54 390 1237 776 79 180 646 1073 192 Hop 6 | . . . . . . . . . . . . . 4 2 . Pick Up 28 | . 3 . 2 4 5 1 . 3 2 4 . 1 1 2 . Fast Attach 56 | 7 . . 3 6 4 4 . 2 1 6 . 4 14 3 2 Attach 27 | . . . 2 3 1 . . 2 2 5 . 1 7 2 2 Detach 20 | . . . 2 1 2 1 . 1 1 1 . . 7 2 2 Swap 17 | . . 1 3 . 4 1 . 3 5 . . . . . . Drop 32 | . . . 1 4 11 . . 4 4 2 . . 1 5 . Fire 36 | 1 8 8 7 . . . . . . . . . 12 . . Melee 135 | . . . 21 15 10 16 . 1 10 19 . 12 22 6 3 Ram . | . . . . . . . . . . . . . . . . Kick 4 | . . 4 . . . . . . . . . . . . . Crush . | . . . . . . . . . . . . . . . . Escape Stasis 13 | . . . . . . . . . . . . . 13 . . Rewire . | . . . . . . . . . . . . . . . . Trap . | . . . . . . . . . . . . . . . . Miscellaneous . | . . . . . . . . . . . . . . . . Route ------- -11/Junkyard -10/Materials -10/Mines -9/Materials (discovered 2 exits: *Mat / [*Sto]) -8/Materials -7/Factory (discovered 5 exits: Fac x4 / [*Low]) -7/Lower Caves -7/Lower Caves -6/Factory -6/Lower Caves -6/Lower Caves (discovered 2 exits: *Fac / *Dat) -6/Data Miner -5/Proximity Caves -5/Factory (discovered 2 exits: Fac / *Upp) -5/Upper Caves -5/Upper Caves History --------- Turn | Location | Event 8 | -11/Junkyard | Discovered new exit (range 16) 90 | -11/Junkyard | Entered Materials 161 | -10/Materials | Discovered new exit (range 15) 300 | -10/Materials | Build established: Mutant 306 | -10/Materials | Entered Mines 363 | -10/Mines | Discovered new exit (range 5) 371 | -10/Mines | Entered Materials 371 | -9/Materials | Evolved 2 slots: Utility x2 532 | -9/Materials | Discovered new exit (range 9) 720 | -9/Materials | Build established: Scavenger-Mutant 753 | -9/Materials | Discovered new exit (range 10) 781 | -9/Materials | Entered another Materials area 781 | -8/Materials | Evolved 2 slots: Propulsion x1, Utility x1 955 | -8/Materials | Lost 4 parts (2n2u) 1065 | -8/Materials | Discovered new exit (range 4) 1070 | -8/Materials | Entered Factory 1070 | -7/Factory | Evolved 2 slots: Utility x1, Weapon x1 1264 | -7/Factory | Build established: Mutant 1462 | -7/Factory | Identified exit to Factory 1941 | -7/Factory | Discovered new exit (range 3) 1944 | -7/Factory | Entered Lower Caves 2327 | -7/Lower Caves | Identified exit to Lower Caves 2448 | -7/Lower Caves | Build established: Scavenger-Mutant 2454 | -7/Lower Caves | Entered another Lower Caves area 2497 | -7/Lower Caves | Discovered exit to Factory (range 15) 2545 | -7/Lower Caves | Entered Factory 2545 | -6/Factory | Evolved 2 slots: Power x1, Utility x1 3002 | -6/Factory | Discovered new exit (range 5) 3006 | -6/Factory | Identified exit to Lower Caves 3081 | -6/Factory | Entered Lower Caves 3160 | -6/Lower Caves | Build established: Mutant 3348 | -6/Lower Caves | Attracted the attention of an 0b10 checkpoint 3389 | -6/Lower Caves | Learned Factory security intel 3394 | -6/Lower Caves | Encountered a Warlord checkpoint 3529 | -6/Lower Caves | Discovered new exit (range 5) 3534 | -6/Lower Caves | Identified exit to Lower Caves 3571 | -6/Lower Caves | Build established: Scavenger-Mutant 3669 | -6/Lower Caves | Learned Armory trap positions 3669 | -6/Lower Caves | Learned Extension security intel 3669 | -6/Lower Caves | Learned Factory terminal intel 4258 | -6/Lower Caves | System corruption reached 10% 4545 | -6/Lower Caves | Entered another Lower Caves area 4676 | -6/Lower Caves | Lost 8 parts (1p4n2u1w) 4907 | -6/Lower Caves | Build established: Mutant 5110 | -6/Lower Caves | Discovered new exit (range 11) 5119 | -6/Lower Caves | Identified exit to Factory 5130 | -6/Lower Caves | Learned 4 Factory zone layouts 5134 | -6/Lower Caves | Learned location of 1 exit from Factory 5366 | -6/Lower Caves | Discovered new exit (range 11) 5376 | -6/Lower Caves | Identified exit to Data Miner 5620 | -6/Lower Caves | Entered Data Miner 5620 | -6/Data Miner | Discovered new exit (range 6) 5632 | -6/Data Miner | Identified exit to Proximity Caves 5648 | -6/Data Miner | Met Data Miner 5670 | -6/Data Miner | Learned location of Section 7 (-2) 5670 | -6/Data Miner | Acquired the access code to Warlord's prototype stash 5688 | -6/Data Miner | Received God Mode back door access code from Data Miner 5715 | -6/Data Miner | Entered Proximity Caves 5718 | -5/Proximity Caves | Spotter reported a threat 5746 | -5/Proximity Caves | Learned Factory stockpile data 5764 | -5/Proximity Caves | Build established: Derelict-Mutant 5781 | -5/Proximity Caves | Escorted by Enhanced Grunt 5880 | -5/Proximity Caves | Discovered exit to Factory (range 15) 5934 | -5/Proximity Caves | Core integrity fell below 50% 5966 | -5/Proximity Caves | Entered Factory 5966 | -5/Factory | Evolved 2 slots: Propulsion x1, Utility x1 5967 | -5/Factory | Identified exit to Factory 5971 | -5/Factory | Loaded intel: 27 terminal locations 5973 | -5/Factory | Lost 8 parts (2p1n3u2w) 6024 | -5/Factory | Incoming assault squad redirected 6063 | -5/Factory | Lost 7 parts (1p3n1u2w) 6266 | -5/Factory | First assault squad dispatched 6288 | -5/Factory | Incoming assault squad redirected 6292 | -5/Factory | Incoming assault squad redirected 6411 | -5/Factory | Build established: Hacker-Ninja 6457 | -5/Factory | Discovered new exit (range 4) 6460 | -5/Factory | Identified exit to Upper Caves 6471 | -5/Factory | Entered Upper Caves 6569 | -5/Upper Caves | Attacked by a delusional Derelict stockpiling Unaware 6621 | -5/Upper Caves | Learned location of Warlord (-5) 6634 | -5/Upper Caves | Learned Extension trap positions 6634 | -5/Upper Caves | Learned Extension emergency access door positions 6634 | -5/Upper Caves | Learned Research stockpile data 6634 | -5/Upper Caves | Learned Extension security intel 6635 | -5/Upper Caves | A Commander dispatched an escort 6750 | -5/Upper Caves | Lost 3 parts (1n2u) 6754 | -5/Upper Caves | Encountered a Warlord checkpoint 6837 | -5/Upper Caves | Learned 12 Factory zone layouts 6951 | -5/Upper Caves | Attracted the attention of an 0b10 checkpoint 6968 | -5/Upper Caves | Discovered new exit (range 12) 6972 | -5/Upper Caves | Identified exit to Upper Caves 6972 | -5/Upper Caves | Entered another Upper Caves area 7001 | -5/Upper Caves | Core integrity fell below 50% 7043 | -5/Upper Caves | Core integrity fell below 20% 7075 | -5/Upper Caves | Lost 7 parts (1p1n5u) 7086 | -5/Upper Caves | Destroyed by S-27 Virus with Autogun Last Messages --------------- 07022_ Connecting with Outpost Terminal... >>Query(Status Report 554B) REPEATED POWER GRID FLUCTUATIONS. >>Query(Status Report 434V) HEAT REACHING DANGEROUS LEVELS. INVESTIGATING SOURCE. 07024_ Imp. Hacking Suite destroyed. 07030_ Searching scrap... 07030_ Found Greatsword. 07030_ Found Unknown Protection. 07030_ Found Target Analyzer. 07030_ Found Unknown Device. 07030_ Found 26 Matter. 07031_ Acquired Unknown Device. 07031_ Identified Imp. Recalibrator. 07032_ Mak. Salvage Targeting Computer destroyed. 07033_ Acquired Unknown Protection. 07033_ Identified Propulsion Shielding. A strange signal echoes through the caves. 07039_ System corrupted: Propulsion Shielding rejected. 07044_ Imp. Recalibrator destroyed. Map ----- +----------------------------------------------------+ | | | | | ?????????????????????????????????????????????????? | | ?????????????????????????????????????????????????? | | ?????????????????????????????????????????????????? | | ?????????????????????????????????????????????????? | | ?????????????????????????????????????????????????? | | ?????????????????????????????????????????????????? | | ?????????????????????????????????????????????????? | | ?????????????????????????????????????????????????? | | ?????????????????????????????????????????????????? | | ?????????????????????????????????????????????????? | | ?????????????????????????????????????????????????? | | ?????????????????????????????????????????????????? | | ?????????????????????????????????????????????????? | | ?????????????????????????????????????????????????? | | ??????????????????????#####??????????????????????? | | #???#####???????????### ##?????????????????????? | | ??### ########????# #?????????????????????? | | ### ###?## #?????????????????????? | | ### #?????????????????????? | | ##### s ### #?????????????????????? | | ### ##???### ss ## #### #????????????????? | | ##?????# ##???????????????? | | ####### ###?????????????? | | ## @ #????????? | | ### ### #????????? | | ### S ####?# ### ##????????? | | ### ##### #????# ##???? #?????????? | | ### ###???## ????## ##????????#?????????? | | ###??????# #????######???????????????????? | | #????????## ?????????????????????????????? | | " #?????????## #????????????????????????????? | | """" #??????????? #????????????????????????????? | | " " #???????????###????????????????????????????? | | """# #??????????????????????????????????????????? | | ""## #??????????????????????????????????????????? | | ## ######?????????###?????????????????????????? | | ## ## ##???###### #?????????????????????????? | | ##### #?????????????????????????? | | #?????????????????????????? | | ##?????????????????????????? | | ### ###??????????????????????????? | | ##?## ####????????????????????????????? | | # ###### ##???????????????????????????????? | | # ##### ##????????????????????????????????? | | ## ###??# ##????????????????????????????????? | | ?###????# #????????????????????????????????? | | ????????# #????????????????????????????????? | | ?#####?## #????????????????????????????????? | +----------------------------------------------------+ Best States ------------- Heat Dissipation 55 Energy Generation 31 Energy Capacity 325 Matter Stores 300 Matter Capacity 300 Sight Range 20 Robot Scan Range 15 Terrain Scan Density 10 Jamming Range 12 Additional Mass Support 9 Armor Coverage 225 Propulsion Shielding 66 Melee Speed Boost 40 Evasion (%) 62 Melee Accuracy 8 Core Analysis 6 Salvage Targeting 4 Offensive Hacking 24 Item Schematics ----------------- Combat Drone Bay | -6/Data Miner | Free Lgt. Regenerative Plating | -6/Data Miner | Free Enh. Armored Leg | -6/Data Miner | Free Prc. Energy Filter | -6/Data Miner | Free Enh. Coil Gun | -6/Data Miner | Free Impulse Thruster | -6/Data Miner | Free Lrn. Terrain Scanner | -6/Data Miner | Free Dispersion Rifle | -6/Data Miner | Free Adv. Transmission Jammer | -6/Data Miner | Free Robot Schematics ------------------ L-41 Fighter | -6/Data Miner | Free B-60 Warrior | -6/Data Miner | Free Y-54 Guardian | -6/Data Miner | Free M-36 Artificer | -6/Data Miner | Free E-15 Imp | -6/Data Miner | Free Fabricated ------------ Nothing Alien Tech Used ----------------- None Achievements -------------- Part-time Excavator Challenges ------------ None Game ------ Seed PhysicsWardroneFrame Manual? 0 Play Time 02:44:45 Cumulative 82.9 hours Start 2023.10.17 @ 19:27:21 End 2023.10.17 @ 23:13:20 Sessions 1 Manual Loads 0 Difficulty Rogue Special Mode None Game No. 74 Rogue 74 Adventurer 0 Explorer 0 Win Type - Total 0 Types 0/0/0/0/0/0/0/0/0 Lore% 26 Gallery% 40 Achievement% 34 Wizard Run 0 Options --------- ASCII 1 Keyboard 1 Movement Vi Keybinds 1 Fullscreen 2 Font 24/Smallcaps Map View 76x50 Tactical HUD 1 Map Filters NONE Filters NONE Steam 1 RUN: 4c761a8d-521c-4dca-bb09-649ea18eddf2